[Event "Tata Steel-A 80th"]
[Site "Wijk aan Zee"]
[Date "2018.01.28"]
[Round "13"]
[White "Mamedyarov, Shakhriyar"]
[Black "Anand, Viswanathan"]
[Result "1/2-1/2"]
[ECO "D37"]
[WhiteElo "2804"]
[BlackElo "2767"]
[Annotator "Fernandez,D"]
[PlyCount "132"]
[EventDate "2018.01.13"]
[EventType "tourn"]
[EventRounds "13"]
[EventCountry "NED"]
[EventCategory "20"]
[SourceTitle "CBM 183"]
[Source "ChessBase"]
[SourceDate "2018.03.14"]
[SourceVersion "1"]
[SourceVersionDate "2018.03.14"]
[SourceQuality "1"]
[TimeControl "40/6000+30:20/3000+30:900+30"]

1. d4 {[%emt 0:00:00]} Nf6 {[%emt 0:00:07]} 2. c4 {[%emt 0:00:00]} e6 {[%emt 0:
00:05]} 3. Nf3 {[%emt 0:00:00]} d5 {[%emt 0:00:08]} 4. Nc3 {[%emt 0:00:00]} Be7
{[%emt 0:00:07]} 5. Bf4 {[%emt 0:00:11]} O-O {[%emt 0:00:09]} 6. e3 {[%emt 0:
00:06]} c5 {[%emt 0:00:06] Black is fine to take a bit of risk, knowing that
White will probably not want to do the same.} 7. dxc5 {[%emt 0:00:07]} Bxc5 {
[%emt 0:00:08]} 8. Qc2 {[%emt 0:00:06]} Nc6 {[%emt 0:00:22]} 9. Rd1 {[%emt 0:
00:10]} (9. a3 {is slightly more popular.} Qa5 10. O-O-O (10. Ra2 $5 {was the
move chosen in a recent, random game.} Be7 11. b4 Qd8 12. h3 b6 (12... d4 $1
$11) 13. cxd5 exd5 14. Be2 Be6 15. Ng5 Rc8 $6 16. Nxe6 fxe6 17. Ba6 $14 {
Topalov,V-Nakamura,H Saint Louis 2017}) (10. Nd2 Bb4 $5 11. cxd5 exd5 12. Nb3
Bxc3+ 13. bxc3 Qd8 $132 {Topalov,V-Nakamura,H Paris 2017, could have been a
decent try for an edge, notwithstanding that it ultimately failed}) 10... Ne4
$5 11. Nb5 (11. Nxe4 {leads to a long forced line:} dxe4 12. Qxe4 Bxa3 13. bxa3
Qxa3+ 14. Kd2 Rd8+ 15. Ke2 Qb2+ 16. Rd2 Rxd2+ 17. Nxd2 e5 18. Bg3 Bg4+ $3 19.
f3 (19. Qxg4 Rd8 20. Kf3 Qxd2 21. Bh4 f5 22. Qg5 Rd4 $1 $11 {with perpetual
check soon}) 19... Rd8 20. Be1 Bh5 $13 {The mess continues, and White has a
few moves now, but I don't think there will be any way found for him to keep
an edge.}) 11... a6 12. Nc7 e5 $1 {Not a new idea from Karjakin, merely an old
one which had been forgotten.} 13. Rxd5 $1 (13. Nxd5 Nxf2 $1 (13... exf4 14.
Qxe4 fxe3 15. fxe3 h6 16. Nd4 $16 {Ivanchuk,V-Karjakin, S Medias 2017}) 14. Ng5
$1 (14. Qxf2 exf4 15. Nxf4 b5 $40) 14... Bf5 $1 15. Qxf2 (15. Qxf5 g6 $17)
15... f6 16. Nh3 exf4 17. Nhxf4 Ne5 $44 {Black has full compensation for the
pawn.}) 13... exf4 (13... Nxf2 14. Qxf2 Qxc7 15. Nxe5 Nxe5 16. Bxe5 Qc6 17. Bd4
$1 $14) (13... f5 $2 14. Rxe5 Nxe5 15. Bxe5 Ra7 16. Nd5 $16 {Kasparov,
G-Vaganian,R Debrecen 1992}) 14. Qxe4 Qxc7 15. Rxc5 fxe3 16. Bd3 $5 (16. Qxe3
b6 17. Rh5 Bg4 18. Rg5 Rfe8 $1 $11) 16... g6 17. Qxe3 b6 18. Rg5 (18. Rh5 Bg4
19. Rh4 Bxf3 20. gxf3 Ne5 $132) 18... Na5 $13 {From a brief investigation it
doesn't seem like White has a convincing follow-up here, though there are, as
usual, many complicated lines ending in perpetual check.}) 9... Qa5 {[%emt 0:
00:30]} 10. a3 {[%emt 0:00:12]} Re8 {[%emt 0:00:34] Treading another of the
hallowed paths of chess history.} (10... Be7 {is more common now, and then} 11.
Be2 {has a huge score for White; indeed I suspect White is probably slightly
better following} Ne4 12. cxd5 Nxc3 13. bxc3 exd5 14. O-O Be6 15. a4 $14 {
Mamedyarov,S-Graf,A Sant Lluis 2005, played by the same White player as the
present encounter.}) 11. Nd2 {[%emt 0:00:31]} (11. Be2 e5 $15 {is the point.})
11... e5 {[%emt 0:01:32]} 12. Bg5 {[%emt 0:00:12]} Nd4 {[%emt 0:00:42]} 13. Qb1
{[%emt 0:00:10]} (13. Qc1 Bf5 {is liable to lead to a forced draw; two of the
world's top players chose this route recently.} 14. Bxf6 Nc2+ 15. Ke2 Nd4+ $11
{Carlsen,M-Nakamura,H Douglas 2017} (15... gxf6 $6 {gets neutralised
effortlessly:} 16. Nxd5 Qa6 17. g4 $1 Bg6 18. Bg2 $16)) 13... Bf5 {[%emt 0:00:
32]} 14. Bd3 {[%emt 0:00:15]} Bxd3 {[%emt 0:00:24]} (14... e4 $6 {is well met
by} 15. Bf1 $1 {giving up a queen for three pieces.} (15. Bc2 {was
nevertheless enough for a slight edge in one of the classics.} Nxc2+ 16. Qxc2
Qa6 17. Bxf6 Qxf6 18. Nb3 $14 {Kortschnoj,V-Karpov,A Baguio City 1978}) 15...
Ng4 16. cxd5 $1 Ne5 17. exd4 Nf3+ 18. gxf3 exf3+ 19. Be3 Bxb1 20. Nc4 $1 Qc7
21. dxc5 $16) 15. Qxd3 {[%emt 0:00:05]} Ne4 {[%emt 0:00:13]} 16. Ndxe4 {
[%emt 0:00:07] Maybe not the most precise, but safe enough.} (16. cxd5 Nxc3 17.
Qxc3 Qxc3 18. bxc3 Nc2+ 19. Ke2 f6 20. Bh4 Nxa3 21. Ne4 Rac8 $11) (16. Ncxe4
dxe4 17. Qxe4 $14 {seems to me to get an advantage.}) 16... dxe4 {[%emt 0:00:
47]} 17. Qd2 {[%emt 0:00:05]} Ne6 {[%emt 0:05:12]} 18. Bh4 {[%emt 0:00:45]} (
18. Nxe4 Qxd2+ 19. Rxd2 f5 20. Nxc5 Nxc5 $13 {leads to an imbalance and likely
quite a good one for Black, who is likely to recover the c4-pawn quite soon.})
18... Qa6 {[%emt 0:09:59]} 19. Qe2 {[%emt 0:00:13]} Rac8 {[%emt 0:07:46]} 20.
O-O {[%emt 0:00:21]} Bf8 {[%emt 0:05:53]} 21. Qg4 {[%emt 0:00:10]} Qxc4 {
[%emt 0:17:32]} (21... Rxc4 $11 {equalised more reliably.}) 22. Nxe4 {[%emt 0:
00:27]} Kh8 {[%emt 0:00:14]} 23. h3 {[%emt 0:00:04]} Nc5 {[%emt 0:06:46]} 24.
Nxc5 {[%emt 0:00:38]} Qxg4 {[%emt 0:01:35]} 25. hxg4 {[%emt 0:00:10]} Rxc5 {
[%emt 0:00:22]} 26. Rd7 {[%emt 0:00:14] Now White could potentially have a
small something again.} Rb5 {[%emt 0:00:40]} 27. b4 {[%emt 0:00:50]} f6 {
[%emt 0:00:28]} 28. g5 {[%emt 0:04:10]} fxg5 {[%emt 0:04:10]} 29. Bxg5 {
[%emt 0:00:09]} a5 {[%emt 0:01:36]} 30. Rfd1 {[%emt 0:00:12]} Kg8 {[%emt 0:05:
05]} 31. Bd8 {[%emt 0:00:21]} axb4 {[%emt 0:00:15]} 32. a4 {[%emt 0:00:08]} Rc5
{[%emt 0:00:09]} 33. Rxb7 {[%emt 0:00:05]} Rc8 {[%emt 0:01:14]} 34. Ba5 {
[%emt 0:00:22]} Rc4 {[%emt 0:05:26]} 35. Rd5 {[%emt 0:12:43]} b3 {[%emt 0:06:
35]} (35... Re6 $11 {is a hard move to make perhaps, but it gets Black some
badly needed counterplay. For instance:} 36. Rb8 Rc1+ 37. Kh2 Rh6+ 38. Kg3 Rg6+
39. Kf3 Rf6+ 40. Ke4 Rxf2 41. Kxe5 Rc4 $132) 36. Rxb3 {[%emt 0:00:19]} Rxa4 {
[%emt 0:00:16]} 37. Bc3 {[%emt 0:01:15]} e4 {[%emt 0:00:27]} 38. Rb7 {[%emt 0:
00:19]} Ra6 {[%emt 0:02:04]} 39. Rdd7 $14 {[%emt 0:06:17] The position looks
threatening, but it is not clear to me how White makes progress, and
apparently it was not clear to Mamedyarov either. There are little things to
try, but they end up being neutralised.} Rg6 {[%emt 0:00:17]} 40. g3 {[%emt 0:
00:00]} Rc8 {[%emt 0:01:48]} 41. Bd4 {[%emt 0:02:22]} Re8 {[%emt 0:00:22]} 42.
Kg2 {[%emt 0:00:14]} Rc8 {[%emt 0:03:12]} 43. Kh3 {[%emt 0:01:03]} Re8 {
[%emt 0:04:40]} 44. Rf7 {[%emt 0:01:41]} Rc8 {[%emt 0:04:07]} 45. Rf4 {[%emt 0:
05:45]} Re8 {[%emt 0:00:05]} 46. Bc3 {[%emt 0:02:00]} (46. Rg4 Rxg4 47. Kxg4 g6
{is still very passive for Black, but this is probably a draw even without the
rooks and e-pawn.}) 46... Rge6 {[%emt 0:07:24]} 47. Rff7 {[%emt 0:03:13]} Rg6 {
[%emt 0:00:09]} 48. Rfc7 {[%emt 0:01:51]} Rd8 {[%emt 0:00:39]} 49. Kg2 {
[%emt 0:00:03]} Re8 {[%emt 0:00:13]} 50. Kf1 {[%emt 0:00:09]} Rd8 {[%emt 0:00:
33]} 51. Ke2 {[%emt 0:00:10]} Re8 {[%emt 0:00:42]} 52. Kd1 {[%emt 0:00:15]} Rg5
{[%emt 0:00:46]} 53. Kc2 {[%emt 0:02:08]} Rf5 {[%emt 0:03:59]} 54. Bxg7 {
[%emt 0:00:27]} Bd6 {[%emt 0:02:26]} 55. Rd7 {[%emt 0:00:52]} Rxf2+ {[%emt 0:
00:12]} 56. Kb3 {[%emt 0:00:29]} Bxg3 {[%emt 0:00:43]} 57. Bd4 {[%emt 0:00:34]}
Be5 {[%emt 0:00:08]} 58. Bxe5 {[%emt 0:01:56]} Rxe5 {[%emt 0:00:08] Soon White
will run out of little things to try and the +/= will collapse to =.} 59. Rg7+
{[%emt 0:00:05]} Kf8 {[%emt 0:00:11]} 60. Rxh7 {[%emt 0:00:00]} Kg8 {[%emt 0:
00:05]} 61. Kc4 {[%emt 0:00:19]} Rg2 {[%emt 0:00:27]} 62. Rhe7 {[%emt 0:00:36]}
Rxe7 {[%emt 0:00:08]} 63. Rxe7 {[%emt 0:00:02]} Kf8 {[%emt 0:00:16]} 64. Rxe4 {
[%emt 0:00:03]} Rg5 {[%emt 0:00:08]} 65. Kd4 {[%emt 0:00:05]} Kf7 {[%emt 0:00:
05]} 66. Re5 {[%emt 0:00:04]} Rg1 {[%emt 0:00:07]} 1/2-1/2

[Event "Tata Steel-A 80th"]
[Site "Wijk aan Zee"]
[Date "2018.01.28"]
[Round "13"]
[White "Matlakov, Maxim"]
[Black "Jones, Gawain C B"]
[Result "1/2-1/2"]
[ECO "E65"]
[WhiteElo "2718"]
[BlackElo "2640"]
[PlyCount "115"]
[EventDate "2018.01.13"]
[EventType "tourn"]
[EventRounds "13"]
[EventCountry "NED"]
[EventCategory "20"]
[SourceTitle "CBM 183"]
[Source "ChessBase"]
[SourceDate "2018.03.14"]
[SourceVersion "1"]
[SourceVersionDate "2018.03.14"]
[SourceQuality "1"]
[TimeControl "40/6000+30:20/3000+30:900+30"]

1. d4 {[%emt 0:00:00]} Nf6 {[%emt 0:00:24]} 2. Nf3 {[%emt 0:00:00]} g6 {
[%emt 0:00:08]} 3. g3 {[%emt 0:00:10]} Bg7 {[%emt 0:00:08]} 4. Bg2 {[%emt 0:00:
10]} O-O {[%emt 0:00:09]} 5. O-O {[%emt 0:00:48]} d6 {[%emt 0:00:40]} 6. c4 {
[%emt 0:00:10]} c5 {[%emt 0:00:07]} 7. Nc3 {[%emt 0:00:40]} Nc6 {[%emt 0:00:21]
} 8. dxc5 {[%emt 0:00:31]} dxc5 {[%emt 0:00:08]} 9. Bf4 {[%emt 0:00:08]} Nd4 {
[%emt 0:01:07]} 10. Re1 {[%emt 0:00:21]} Re8 {[%emt 0:17:36]} 11. Rc1 {[%emt 0:
09:58]} Ng4 {[%emt 0:18:20]} 12. h3 {[%emt 0:08:17]} e5 {[%emt 0:00:35]} 13.
Bg5 Nxf3+ 14. exf3 {[%emt 0:01:30]} Qxg5 {[%emt 0:11:55]} 15. fxg4 Qe7 {
[%emt 0:05:15]} 16. Qa4 {[%emt 0:14:03]} Bd7 {[%emt 0:07:11]} 17. Qa3 {[%emt 0:
04:54]} Bc6 {[%emt 0:01:49]} 18. Nd5 {[%emt 0:15:41]} Bxd5 {[%emt 0:02:03]} 19.
cxd5 {[%emt 0:02:04]} Bf8 {[%emt 0:01:19]} 20. d6 {[%emt 0:02:08]} Qxd6 {
[%emt 0:00:45]} 21. Bxb7 {[%emt 0:11:15]} Rab8 {[%emt 0:11:39]} 22. Be4 {
[%emt 0:08:18]} Red8 {[%emt 0:03:13]} 23. Rc2 {[%emt 0:04:00]} Rb4 {[%emt 0:01:
57]} 24. Qf3 {[%emt 0:00:42]} Rd4 {[%emt 0:06:57]} 25. Kg2 a5 26. h4 {[%emt 0:
02:22]} a4 {[%emt 0:01:45]} 27. Re3 {[%emt 0:01:37]} Qa6 {[%emt 0:03:17]} 28.
g5 {[%emt 0:03:16]} Rd1 {[%emt 0:01:28]} 29. Rce2 {[%emt 0:02:03]} Qc4 {
[%emt 0:01:52]} 30. b3 {[%emt 0:05:15]} Qc1 {[%emt 0:01:58]} 31. Kh2 {[%emt 0:
03:24]} axb3 {[%emt 0:04:14]} 32. Rxb3 {[%emt 0:00:34]} c4 {[%emt 0:02:50]} 33.
Rb7 {[%emt 0:05:37]} R1d7 {[%emt 0:00:08]} 34. Reb2 {[%emt 0:05:03]} Qd1 {
[%emt 0:01:00]} 35. Rxd7 {[%emt 0:01:11]} Rxd7 {[%emt 0:00:33]} 36. Qf6 {
[%emt 0:00:46]} Qe1 {[%emt 0:03:01]} 37. Qf3 {[%emt 0:00:42]} c3 {[%emt 0:01:
11]} 38. Re2 {[%emt 0:00:10]} Qd1 {[%emt 0:00:55]} 39. Bc2 {[%emt 0:00:14]} Qd4
{[%emt 0:00:53]} 40. Bb3 {[%emt 0:00:00]} Rc7 {[%emt 0:00:38]} 41. Kg2 {
[%emt 0:10:35]} Qd7 {[%emt 0:04:37]} 42. Bc2 {[%emt 0:01:46]} Rc5 {[%emt 0:07:
16]} 43. Re3 {[%emt 0:02:37]} Qc7 {[%emt 0:01:17]} 44. Qe4 {[%emt 0:02:30]} Qa7
{[%emt 0:07:41]} 45. Bb3 {[%emt 0:02:14]} Rc7 {[%emt 0:01:16]} 46. h5 {[%emt 0:
06:31]} Qd4 {[%emt 0:01:13]} 47. Qc2 {[%emt 0:00:21]} Kg7 {[%emt 0:07:42]} 48.
Qe2 {[%emt 0:04:28]} Qc5 {[%emt 0:03:25]} 49. Bc2 {[%emt 0:07:43]} Qd5+ {
[%emt 0:03:21]} 50. Kh2 {[%emt 0:00:43]} e4 {[%emt 0:01:45]} 51. Qg4 {[%emt 0:
02:54]} Rc5 {[%emt 0:04:21]} 52. h6+ {[%emt 0:09:09]} Kg8 {[%emt 0:00:10]} 53.
Rxe4 {[%emt 0:00:41]} Qxg5 {[%emt 0:02:09]} 54. Qxg5 {[%emt 0:00:10]} Rxg5 {
[%emt 0:00:05]} 55. Re8 {[%emt 0:00:28]} Rh5+ {[%emt 0:00:21]} 56. Kg2 {
[%emt 0:00:04]} Rxh6 {[%emt 0:00:07]} 57. Rc8 {[%emt 0:00:54]} Rh5 {[%emt 0:00:
19]} 58. Rxc3 1/2-1/2

[Event "Tata Steel-A 80th"]
[Site "Wijk aan Zee"]
[Date "2018.01.28"]
[Round "13"]
[White "So, Wesley"]
[Black "Hou, Yifan"]
[Result "1-0"]
[ECO "E01"]
[WhiteElo "2792"]
[BlackElo "2680"]
[Annotator "Fernandez,D"]
[PlyCount "59"]
[EventDate "2018.01.13"]
[EventType "tourn"]
[EventRounds "13"]
[EventCountry "NED"]
[EventCategory "20"]
[SourceTitle "CBM 183"]
[Source "ChessBase"]
[SourceDate "2018.03.14"]
[SourceVersion "1"]
[SourceVersionDate "2018.03.14"]
[SourceQuality "1"]
[TimeControl "40/6000+30:20/3000+30:900+30"]

1. c4 {[%emt 0:00:00]} e6 {[%emt 0:00:05]} 2. g3 {[%emt 0:00:16]} d5 {[%emt 0:
00:26]} 3. Bg2 {[%emt 0:00:13]} Nf6 {[%emt 0:00:06]} 4. d4 {[%emt 0:00:44]}
Bb4+ {[%emt 0:03:13]} 5. Bd2 {[%emt 0:02:57]} Bd6 {[%emt 0:00:13]} (5... Be7 {
is far more common. It has a few advantages over the text- for instance,
covering the h4-d8 diagonal; avoiding c5 with tempo, and keeping d5 better
covered.} 6. Nf3 (6. Nc3 O-O 7. Nf3 dxc4 {has scored extremely well for Black})
6... O-O 7. O-O Nbd7 {We have obtained a standard 'delayed Catalan', as seen
for instance in Karjakin-Wei from this event.}) 6. Nc3 {[%emt 0:04:15] Trying
to make Black take on c4 or play ...c6, neither of which is particularly
favourable.} O-O {[%emt 0:03:07]} (6... c6 7. e4 dxe4 8. Nxe4 Nxe4 9. Bxe4 Nd7
10. Nf3 Nf6 11. Bc2 $14 {Vallejo Pons,F-Quesada Perez,Y Monzon 2016}) (6...
dxc4 {might nevertheless be the best move.} 7. Qa4+ (7. e4 e5 $132) 7... Nbd7 (
7... Nc6 $6 8. Bxc6+ bxc6 9. Qxc6+ Bd7 10. Qxc4 Qb8 11. b3 Qb7 12. Nf3 Bc6 $6
13. O-O Bxf3 14. exf3 Qxf3 15. d5 $16 {Donchenko, A-Bartel,M Gjakova 2016}) 8.
Qxc4 a6 $1 $132 {According to what I can see, this position has never been
viewed, let alone played, but a preliminary investigation indicates Black is
probably okay playing the standard ...Rb8, ... 0-0 and then whichever of ...b5,
...e5 and ...c5 best suits the position.} ({Meanwhile} 8... O-O 9. Nb5 $14 {
is arguably another disadvantage of ...Bd6})) 7. cxd5 {[%emt 0:01:32] If this
forcing approach works, there is no need to analyse anything else.} (7. e4 {
might be another move, as in the Vallejo game above, but here Black can
eventually play ...c5 in one.}) 7... exd5 {[%emt 0:00:06]} 8. Nxd5 {[%emt 0:00:
05]} Nxd5 {[%emt 0:00:05]} 9. Bxd5 {[%emt 0:00:05]} Bxg3 {[%emt 0:03:53]} 10.
Qb3 {[%emt 0:00:52]} Bd6 {[%emt 0:07:57]} (10... c6 11. Bxf7+ Rxf7 12. hxg3
Qxd4 13. Nf3 Qb6 14. Qxb6 axb6 15. Ng5 $16) 11. Nf3 {[%emt 0:00:21]} c6 {
[%emt 0:01:00]} (11... Nd7 {After the precise} 12. Rg1 $1 {Black has an
interesting choice to make.} Nf6 (12... Nb6 $5 13. Bh6 g6 14. Bxf8 Qxf8 $44 {
is not stupid either}) 13. Bc4 (13. Bh6 Ng4 14. Bg5 Be7 $11) 13... Bf5 14.
O-O-O (14. Ne5 Bxe5 15. dxe5 Ne4 16. Bh6 Qh4 $1 $132) 14... Qe7 $132 {White's
attacking chances are not insignificant, but Black has completed development
and should be fine.}) 12. Bc4 {[%emt 0:04:01]} Bf5 $6 {[%emt 0:13:41] Between
them the last two moves deserve one 'dubious' mark, and I have decided to
award it here.} (12... Nd7 13. Rg1 Nb6 {was once again worth considering,
since White runs into some tactical issues down the road if he takes the
exchange.}) 13. Ng5 {[%emt 0:08:52]} Qe7 {[%emt 0:00:12]} 14. Qf3 {[%emt 0:07:
15]} (14. O-O-O h6 15. e4 $40 {is revealed to be really problematic after some
deep engine analysis, but the text is more natural.}) 14... Bg6 {[%emt 0:02:19]
} 15. h4 {[%emt 0:01:17]} Bb4 {[%emt 0:04:00]} (15... h5 16. Bd3 Bxd3 17. Qxd3
g6 18. O-O-O Nd7 19. e4 $40) 16. O-O-O {[%emt 0:03:00]} Bxd2+ {[%emt 0:00:48]}
17. Rxd2 {[%emt 0:00:18]} h5 {[%emt 0:20:41]} (17... h6 18. h5 Qxg5 19. hxg6
Qxg6 20. Rdd1 $40 {is really difficult to believe for Black.}) (17... Nd7 18.
h5 Qxg5 19. hxg6 Qxg6 {could have been a bail-out option: the engine
recommendation is} 20. Qh3 {but there could follow} (20. Rdd1 $5) 20... Nf6 21.
Bd3 Qh6 {and Black has reached an endgame.}) 18. Rg1 {[%emt 0:09:39] The
position is now basically objectively winning in a number of ways.} (18. Qg3 $5
{is a slightly cunning move, cuing up Ne6 (the text does not do this, because
of the x-ray attack from the f8-rook.)}) 18... Nd7 {[%emt 0:02:22]} 19. Qg3 {
[%emt 0:04:47]} Nb6 {[%emt 0:05:48]} 20. Bb3 {[%emt 0:01:13]} Qf6 {[%emt 0:03:
29]} (20... Nd5 21. e4 {does not really do anything to interfere with the
threat of Nxf7.}) 21. e4 {[%emt 0:03:42]} Rae8 {[%emt 0:00:31]} 22. e5 {
[%emt 0:00:55]} Qf5 {[%emt 0:00:05]} 23. Bc2 {[%emt 0:00:04]} Qg4 {[%emt 0:08:
41]} 24. Bxg6 {[%emt 0:02:40]} Qxg3 {[%emt 0:00:06]} (24... fxg6 25. Qb3+ $18 {
is of course the point.}) 25. Bh7+ {[%emt 0:00:05]} Kh8 {[%emt 0:00:03]} 26.
Rxg3 {[%emt 0:01:17]} f6 {[%emt 0:00:05]} 27. Bg6 {[%emt 0:00:14]} fxg5 {
[%emt 0:00:05]} 28. Bxe8 {[%emt 0:00:54]} gxh4 {[%emt 0:00:06]} 29. Rg5 {
[%emt 0:00:05]} Rxe8 {[%emt 0:00:13]} 30. Rxh5+ {[%emt 0:00:16] It is
pointless to go on.} 1-0

[Event "Tata Steel-A 80th"]
[Site "Wijk aan Zee"]
[Date "2018.01.28"]
[Round "13"]
[White "Wei, Yi"]
[Black "Giri, Anish"]
[Result "1/2-1/2"]
[ECO "A17"]
[WhiteElo "2743"]
[BlackElo "2752"]
[Annotator "Fernandez,D"]
[PlyCount "42"]
[EventDate "2018.01.13"]
[EventType "tourn"]
[EventRounds "13"]
[EventCountry "NED"]
[EventCategory "20"]
[SourceTitle "CBM 183"]
[Source "ChessBase"]
[SourceDate "2018.03.14"]
[SourceVersion "1"]
[SourceVersionDate "2018.03.14"]
[SourceQuality "1"]
[TimeControl "40/6000+30:20/3000+30:900+30"]

1. Nf3 {[%emt 0:00:00]} d5 {[%emt 0:00:33]} 2. e3 {[%emt 0:00:00]} Nf6 {
[%emt 0:01:09]} 3. c4 {[%emt 0:00:00]} e6 {[%emt 0:00:02]} 4. Nc3 {[%emt 0:00:
11] Probably trying for some clever move-order trick in a Meran.} b6 {[%emt 0:
00:18]} (4... a6 5. b3 Bd6 6. Bb2 O-O 7. g4 $5 $132 {Nepomniachtchi,I-Anand,V
London 2017, was an experimental continuation.}) (4... Bb4 $5 {has an equally
'interesting' flavour:} 5. a3 (5. Qa4+ Nc6 6. Nd4 a5 $132) 5... Bxc3 6. bxc3
O-O 7. Bb2 $5 {Trying to open the long diagonal quickly, but Black has a
gambit idea.} (7. d4 c5 {Via a circuituous route, we have reached a main line
Sдmisch position.}) 7... c5 8. cxd5 exd5 9. c4 d4 $5 $132) (4... c5 {is of
course fine, when White's main independent continuation could be the attempt
to force an IQP position with} 5. cxd5 {. However, Black is under no
obligation to accept this and can continue} Nxd5 $5 6. d4 cxd4 7. exd4 Nxc3 8.
bxc3 Qc7 9. Bd2 Nd7 $132 {Aronian,L-Carlsen,M London 2015}) 5. b3 {[%emt 0:00:
55]} Bb7 {[%emt 0:00:26]} 6. Bb2 {[%emt 0:00:21]} Nbd7 {[%emt 0:00:33]} 7. g3
$5 {[%emt 0:11:42] Ducking d4 at any cost.} Bd6 {[%emt 0:23:15]} (7... dxc4 {
seems logical to try and punish White's omission. For instance,} 8. Bxc4 (8.
bxc4 e5 9. Bg2 e4 $36) 8... a6 9. O-O (9. a4 Bb4 $11 {is also very comfortable}
) 9... b5 10. Be2 Be7 $11) 8. Bg2 {[%emt 0:02:30]} O-O {[%emt 0:01:09]} 9. O-O
{[%emt 0:04:11]} Re8 {[%emt 0:01:52]} 10. Rc1 {[%emt 0:22:12]} a6 {[%emt 0:01:
11]} 11. Qe2 {[%emt 0:05:29]} dxc4 {[%emt 0:07:12]} (11... c5 $6 {was
correctly avoided:} 12. cxd5 exd5 (12... Nxd5 13. Nxd5 exd5 14. d4 {is similar}
) 13. d4 {Black does not have a good version of the hanging pawns position.})
12. bxc4 {[%emt 0:00:20]} b5 $5 {[%emt 0:02:34] Liquidating.} (12... c5 13. Ng5
Bxg2 14. Kxg2 {leads to a position reminiscent of the 6.b3 Catalan discussed
yesterday; both sides have glaring backward pawns but White is probably
slightly more comfortable unless Black hurries to get pieces off with (say)}
Be5 $1 15. f4 Bxc3 16. Bxc3 e5 $11) 13. cxb5 {[%emt 0:30:32]} axb5 {[%emt 0:00:
11]} 14. Nxb5 {[%emt 0:00:11]} Rxa2 {[%emt 0:00:27]} 15. d4 {[%emt 0:08:18]} ({
It is a running joke in my circle that whenever possible, I will suggest moves
like} 15. Bxf6 {to try and exploit, after a further 50 moves, some perceived
superiority of White's compact structure. This may or may not be present, but
on objective grounds the move deserves consideration. Play could continue} Nxf6
16. Nfd4 Bxg2 17. Kxg2 Ne4 18. Rfd1 $11 {when White has the 'threat' of Nc3,
exchanging off more pieces and thus getting closer to the ideal RB v RN
position, where in theory the backward c-pawn could become a factor.}) 15...
Qb8 {[%emt 0:09:27]} 16. Ra1 {[%emt 0:00:43]} Rxa1 {[%emt 0:01:41]} 17. Rxa1 {
[%emt 0:00:05]} Bf8 {[%emt 0:00:18]} 18. Nc3 {[%emt 0:01:51]} c5 {[%emt 0:00:
30]} 19. Rb1 {[%emt 0:02:34] Maybe a slightly slack move.} (19. Qb5 cxd4 20.
Nxd4 Bxg2 21. Kxg2 $11) 19... cxd4 {[%emt 0:01:34]} 20. Nxd4 {[%emt 0:00:04]}
Bxg2 {[%emt 0:00:06]} 21. Kxg2 {[%emt 0:00:05]} Qa8+ {[%emt 0:01:47]} (21...
Rc8 {created a threat and would not have been a totally unreasonable move to
play on with.} 22. Ba1 Qa8+ 23. Qf3 Qa3 24. Ndb5 Qa6 $11 {and while the
position is objectively level, White's pieces are a little bit tangled up and
a bit less active.}) 1/2-1/2